bitfinex/quotes_BTCUSD_20220202
["timestamp","ask_amount","ask_price","bid_price","bid_amount"]
[1643783733186,0.0521,38387.0,38385.0,0.00167983]
[1643783733385,0.68119916,38402.0,38386.0,0.950946]
[1643783733386,0.0521,38399.0,38386.0,0.950946]
[1643783733586,0.0521,38399.0,38395.0,0.27597107]
[1643783733786,0.0521,38399.0,38387.0,0.0005]
[1643783733787,0.59007472,38398.0,38387.0,0.0005]
[1643783733985,0.59007472,38398.0,38386.0,0.0011]
[1643783733986,0.0521,38397.0,38386.0,0.0011]
[1643783734188,0.40072926,38396.0,38386.0,0.0011]
[1643783734386,0.0521,38395.0,38391.0,0.00117965]
[1643783734584,0.349846,38394.0,38391.0,0.00117965]
[1643783734786,0.26417037,38393.0,38391.0,0.00117965]
[1643783734988,0.125044,38392.0,38391.0,0.00117965]
[1643783735287,0.125044,38392.0,38386.0,0.0011]
[1643783735288,0.225044,38392.0,38386.0,0.0011]
[1643783735488,0.125044,38392.0,38390.0,0.00117968]
[1643783735686,0.22092521,38391.0,38390.0,0.00117968]
[1643783735888,0.67077121,38391.0,38390.0,0.00117968]
[1643783736134,0.94484137,38391.0,38390.0,0.00117968]
[1643783736536,0.27634342,38388.0,38386.0,0.0011]
[1643783736737,0.32032729,38387.0,38386.0,0.0011]
[1643783737134,0.42032729,38387.0,38386.0,0.0011]
[1643783737335,0.072944,38387.0,38386.0,0.0011]
[1643783737537,0.35566773,38387.0,38386.0,0.0011]
[1643783737735,0.35,38386.0,38383.0,0.00092032]
[1643783738035,0.349846,38385.0,38383.0,0.00092032]
[1643783738234,0.1,38384.0,38383.0,0.00092032]
[1643783738436,1.01316895,38384.0,38383.0,0.00092032]
[1643783738635,0.76340697,38384.0,38383.0,0.00092032]
[1643783739034,0.76340697,38384.0,38382.0,0.00117992]
[1643783739238,0.349846,38383.0,38382.0,0.00117992]
[1643783739638,0.04051167,38387.0,38382.0,0.00117992]
[1643783739639,0.00590575,38387.0,38382.0,0.00117992]
[1643783740087,0.00590575,38387.0,38377.0,0.34976198]
[1643783740284,0.00590575,38387.0,38383.0,0.00117989]
[1643783740484,0.03789051,38394.0,38383.0,0.00117989]
[1643783740785,0.03789051,38394.0,38384.0,0.31036923]
[1643783740786,0.2421989,38392.0,38384.0,0.31036923]
[1643783740986,0.03789051,38394.0,38384.0,0.31036923]
[1643783740987,0.03789051,38394.0,38385.0,0.23605144]
[1643783741185,0.26058135,38391.0,38385.0,0.23605144]
[1643783741587,0.26058135,38391.0,38388.0,0.00117974]
[1643783741788,0.03789051,38394.0,38388.0,0.00117974]
[1643783741986,0.349846,38393.0,38388.0,0.00117974]
[1643783742187,0.03789051,38394.0,38388.0,0.00117974]
[1643783742188,0.03789051,38394.0,38390.0,0.25397498]
[1643783742390,3.12686581,38405.0,38391.0,0.28515307]
[1643783742586,3.12686581,38405.0,38391.0,0.33515307]
[1643783742587,0.349846,38404.0,38391.0,0.33515307]
[1643783742987,0.349846,38403.0,38391.0,0.33515307]
[1643783743385,0.36059554,38404.0,38391.0,0.33515307]
[1643783743638,0.25362083,38402.0,38392.0,0.0343713]
[1643783743835,0.25362083,38402.0,38393.0,0.28950759]
[1643783744035,0.349846,38401.0,38396.0,0.00117949]
[1643783744440,0.21516011,38400.0,38396.0,0.00117949]
[1643783744637,0.072944,38399.0,38396.0,0.00117949]
[1643783745039,0.3240486,38398.0,38389.0,0.03936404]
[1643783745237,0.449846,38397.0,38396.0,0.00117949]
[1643783746139,0.449846,38397.0,38386.0,0.09024367]
[1643783746338,0.449846,38397.0,38395.0,0.00117952]
[1643783746339,0.52652835,38397.0,38395.0,0.00117952]
[1643783746538,0.25,38396.0,38395.0,0.00117952]
[1643783746737,0.40058175,38396.0,38395.0,0.00117952]
[1643783746942,0.072944,38396.0,38395.0,0.00117952]
[1643783747141,0.45147362,38396.0,38395.0,0.00117952]
[1643783747390,0.51660862,38396.0,38386.0,0.04024367]
[1643783747594,0.45574782,38395.0,38394.0,0.00058978]
[1643783748594,0.45574782,38395.0,38385.0,0.24741785]
[1643783748796,0.45574782,38395.0,38393.0,0.00117959]
[1643783749695,0.45574782,38395.0,38381.0,0.03455946]
[1643783749696,0.52968732,38394.0,38382.0,0.04295054]
[1643783749898,0.52968732,38394.0,38392.0,0.0011796]
[1643783749899,0.225044,38393.0,38392.0,0.0011796]
[1643783750096,0.31692357,38393.0,38392.0,0.0011796]
[1643783750699,0.31692357,38393.0,38386.0,0.00471911]
[1643783750700,0.1942534,38387.0,38386.0,0.00471911]
[1643783750896,0.86659603,38387.0,38374.0,0.23593914]
[1643783751139,0.130289,38384.0,38374.0,0.23583109]
[1643783751339,0.51675003,38387.0,38373.0,0.05]
[1643783751540,0.27556275,38381.0,38373.0,0.30739182]
[1643783751939,0.065146,38379.0,38373.0,0.30739182]
[1643783752939,0.065146,38379.0,38374.0,0.24298177]
[1643783753439,0.065146,38379.0,38374.0,0.235061]
[1643783753740,0.065146,38379.0,38371.0,0.26610366]
[1643783753940,0.065146,38379.0,38369.0,0.00113282]
[1643783754439,0.065146,38379.0,38370.0,0.349846]
[1643783754643,0.065146,38379.0,38371.0,0.26337338]
[1643783754888,0.065146,38379.0,38375.0,0.25428633]
[1643783755091,0.01831573,38383.0,38379.0,0.05432688]
[1643783755290,0.130289,38384.0,38376.0,0.23659385]
[1643783755788,0.05,38387.0,38375.0,0.25428633]
[1643783755789,0.065138,38383.0,38375.0,0.25428633]
[1643783755989,0.065138,38383.0,38378.0,0.00117413]
[1643783756390,0.065138,38383.0,38381.0,0.27349125]
[1643783756789,0.30749663,38383.0,38378.0,0.00117413]
[1643783756990,0.30749663,38383.0,38373.0,0.24693658]
[1643783757193,0.30749663,38383.0,38368.0,0.24693658]
[1643783757195,0.6,38382.0,38368.0,0.24693658]
[1643783757390,0.6,38382.0,38366.0,0.05]
[1643783757391,0.03758,38376.0,38366.0,0.05]
[1643783757590,0.065157,38375.0,38366.0,0.05]
[1643783757793,0.065157,38375.0,38368.0,0.25311887]
[1643783758637,0.349846,38374.0,38368.0,0.25311887]
[1643783758838,0.065157,38375.0,38368.0,0.24925169]
[1643783759439,0.349846,38374.0,38363.0,0.0024254]
[1643783759638,0.07106173,38375.0,38363.0,0.0024254]
[1643783759639,0.07106173,38375.0,38370.0,0.00057985]
[1643783759841,0.349846,38374.0,38370.0,0.00057985]
[1643783760543,0.59481065,38378.0,38371.0,0.0521]
[1643783760741,0.59481065,38378.0,38370.0,0.00114502]
[1643783760742,0.00133083,38376.0,38370.0,0.00114502]
[1643783761239,0.00133083,38376.0,38372.0,0.23217491]
[1643783761440,0.00133083,38376.0,38370.0,0.00114502]
[1643783761839,0.00133083,38376.0,38363.0,0.3025254]
[1643783761840,0.24693658,38377.0,38363.0,0.2025254]
[1643783762040,0.00133085,38376.0,38371.0,0.00114499]
[1643783762299,0.349846,38375.0,38371.0,0.00114499]
[1643783762498,0.06516,38374.0,38371.0,0.00114499]
[1643783762693,0.072944,38373.0,38371.0,0.00114499]
[1643783762893,0.072944,38373.0,38365.0,0.22095424]
[1643783763092,0.39895495,38374.0,38370.0,0.00114502]
[1643783763493,0.2570426,38373.0,38370.0,0.00114502]
[1643783764095,0.2570426,38373.0,38365.0,0.22095424]
[1643783764294,0.2570426,38373.0,38370.0,0.00114503]
[1643783764695,0.57108287,38372.0,38370.0,0.00114503]
[1643783765294,0.57108287,38372.0,38363.0,0.0024254]
[1643783765496,0.4489947,38372.0,38369.0,0.00114505]
[1643783765698,0.349846,38371.0,38369.0,0.00114505]
[1643783765895,0.22328637,38370.0,38369.0,0.00114505]
[1643783766140,0.29623037,38370.0,38369.0,0.00114505]
[1643783766342,0.072944,38370.0,38369.0,0.00114505]
[1643783766544,0.60680162,38370.0,38363.0,0.0024254]
[1643783766743,0.065173,38369.0,38368.0,0.00114509]
[1643783767043,0.64124052,38369.0,38368.0,0.00114509]
[1643783767242,0.415019,38369.0,38368.0,0.00114509]
[1643783767444,0.63790069,38369.0,38368.0,0.00114509]
[1643783767646,0.57272769,38369.0,38368.0,0.00114509]
[1643783767844,0.349846,38369.0,38365.0,0.26205242]
[1643783768045,0.065172,38371.0,38367.0,0.00114512]
[1643783769047,0.065172,38371.0,38365.0,0.26205242]
[1643783769246,0.065172,38371.0,38367.0,0.00057255]
[1643783770087,0.065172,38371.0,38365.0,0.26205242]
[1643783770295,0.065151,38375.0,38367.0,0.00057255]
[1643783770490,0.02175205,38375.0,38367.0,0.00057255]
[1643783770688,0.02175205,38375.0,38368.0,0.349846]
[1643783770987,0.02175205,38375.0,38369.0,0.28117897]
[1643783771187,0.02175205,38375.0,38367.0,0.2903058]
[1643783771387,0.27994007,38382.0,38373.0,0.39972311]
[1643783771588,0.00132793,38376.0,38373.0,0.3073886]
[1643783772587,0.065145,38378.0,38373.0,0.3073886]
[1643783772788,0.00132796,38376.0,38373.0,0.3073886]
[1643783772991,0.00132796,38376.0,38375.0,0.30473985]
[1643783773187,0.00132796,38376.0,38373.0,0.3073886]
[1643783773642,0.00132796,38376.0,38374.0,0.30042328]
[1643783773840,0.8724,38387.0,38375.0,0.949846]
[1643783773841,0.01877067,38381.0,38375.0,0.949846]
[1643783774042,0.00132796,38376.0,38375.0,0.98046188]
[1643783774242,0.00132796,38376.0,38375.0,1.001946]
[1643783774442,0.00132796,38376.0,38375.0,1.33030788]
[1643783774642,0.00132796,38376.0,38375.0,1.40805499]
[1643783774841,0.00132796,38376.0,38375.0,0.38046188]
[1643783775041,0.065145,38378.0,38375.0,0.38046188]
[1643783775240,0.065145,38378.0,38375.0,0.0521]
[1643783775441,0.065145,38378.0,38375.0,0.38046188]
[1643783776044,0.065145,38378.0,38375.0,0.0521]
[1643783776242,0.065145,38378.0,38375.0,0.38046188]
[1643783776442,0.06647119,38378.0,38375.0,0.32836188]
[1643783776842,0.06647119,38378.0,38374.0,0.32836188]
[1643783777042,0.06647119,38378.0,38373.0,0.32836188]
[1643783777299,0.065145,38378.0,38373.0,0.32836188]
[1643783777794,0.065145,38378.0,38372.0,0.00114496]
[1643783777795,0.23875137,38374.0,38372.0,0.00114496]
[1643783778594,0.23535308,38372.0,38371.0,0.32836188]
[1643783778795,0.065152,38375.0,38371.0,0.00114499]
[1643783778994,0.065152,38375.0,38371.0,0.32950687]
[1643783779796,0.065152,38375.0,38371.0,0.32836188]
[1643783780095,0.065152,38375.0,38371.0,0.32950687]
[1643783780699,0.065152,38375.0,38372.0,0.57668516]
[1643783780901,0.29457863,38378.0,38373.0,0.32836188]
[1643783781139,0.29457863,38378.0,38369.0,0.0521]
[1643783781140,0.00132622,38376.0,38372.0,0.32950685]
[1643783781339,0.00132622,38376.0,38373.0,0.32836188]
[1643783781540,0.00132622,38376.0,38375.0,0.67836188]
[1643783782139,0.065146,38378.0,38375.0,0.32836188]
[1643783782341,0.26407163,38377.0,38374.0,0.32836188]
[1643783782539,0.00132621,38377.0,38374.0,0.32836188]
[1643783783342,0.29666509,38377.0,38374.0,0.32836188]
[1643783783542,0.2979913,38377.0,38372.0,0.32950684]
[1643783783942,0.00132621,38377.0,38372.0,0.32950684]
[1643783784141,0.00132621,38377.0,38374.0,0.32836188]
[1643783784341,0.00132621,38377.0,38375.0,0.25802913]
[1643783784543,0.23364671,38376.0,38373.0,0.32836188]
[1643783784810,0.27937718,38378.0,38373.0,0.32836188]
[1643783785403,0.27937718,38378.0,38372.0,0.00057248]
[1643783785404,0.27937718,38378.0,38374.0,0.32836188]
[1643783785603,0.27937718,38378.0,38373.0,0.32836188]
[1643783785804,0.27937718,38378.0,38372.0,0.00057248]
[1643783785805,0.27937718,38378.0,38374.0,0.32836188]
[1643783786204,0.27937718,38378.0,38373.0,0.32836188]
[1643783786807,0.27937718,38378.0,38372.0,0.32893436]
[1643783787005,0.37091066,38374.0,38371.0,0.32886188]
[1643783787206,0.37091066,38374.0,38372.0,0.00057248]
[1643783787606,0.1,38373.0,38372.0,0.00057248]
[1643783787807,0.82363327,38373.0,38372.0,0.00057248]
[1643783788105,0.91955327,38373.0,38371.0,0.0005]
[1643783788308,0.072944,38372.0,38371.0,0.0005]
[1643783788546,0.122944,38372.0,38371.0,0.001645]
[1643783788744,0.38276077,38372.0,38371.0,0.001645]
[1643783789344,0.38276077,38372.0,38371.0,0.0005]
[1643783789543,0.38276077,38372.0,38370.0,0.00114503]
[1643783789744,0.13034037,38371.0,38370.0,0.00114503]
[1643783789943,0.70489683,38371.0,38370.0,0.00114503]
[1643783790344,0.57455646,38371.0,38370.0,0.00114503]
[1643783790545,0.57455646,38371.0,38365.0,0.32836188]
[1643783790746,0.24375945,38367.0,38365.0,0.32836188]
[1643783790945,0.30892945,38367.0,38366.0,0.32836188]
[1643783791149,0.24375945,38367.0,38366.0,0.32836188]
[1643783791345,0.30981677,38372.0,38366.0,0.32836188]
[1643783791846,0.25981677,38372.0,38366.0,0.32836188]
[1643783792046,0.065169,38368.0,38367.0,0.00114511]
[1643783792593,0.065169,38368.0,38367.0,0.32950699]
[1643783792892,0.065169,38368.0,38367.0,0.38423397]
[1643783793092,0.19549937,38371.0,38367.0,0.38308886]
[1643783793292,0.065159,38371.0,38370.0,0.32495696]
[1643783793493,0.065159,38371.0,38368.0,0.29924727]
[1643783793695,0.065159,38371.0,38368.0,0.68233613]
[1643783793892,0.065159,38371.0,38369.0,0.93359934]
[1643783794894,0.065159,38371.0,38370.0,0.38308886]
[1643783795094,0.115159,38371.0,38370.0,0.38308886]
[1643783795695,0.115159,38371.0,38369.0,0.38423392]
[1643783795895,0.115159,38371.0,38369.0,0.93473274]
[1643783796143,0.05,38371.0,38369.0,0.93473274]
[1643783796348,0.13032,38375.0,38370.0,0.93358768]
[1643783796545,0.2352661,38373.0,38370.0,0.38308886]
[1643783796745,0.2352661,38373.0,38371.0,0.001145]
[1643783797747,0.52617224,38373.0,38369.0,0.38308886]
[1643783798047,0.52617224,38373.0,38370.0,0.00114502]
[1643783799047,0.06516491,38372.0,38369.0,0.38308886]
[1643783799249,0.06516491,38372.0,38370.0,0.00114503]
[1643783799892,0.06516491,38372.0,38370.0,0.00104503]
[1643783800191,0.06516491,38372.0,38368.0,0.37808886]
[1643783800393,0.06516491,38372.0,38365.0,0.29653687]
[1643783800590,0.065162,38371.0,38366.0,0.55041907]
[1643783800791,0.065162,38371.0,38366.0,0.55031907]
[1643783800991,0.065162,38371.0,38366.0,0.55021907]
[1643783801396,0.065162,38371.0,38363.0,0.0024254]
[1643783801594,0.065162,38371.0,38363.0,0.0023254]
[1643783801792,0.065162,38371.0,38363.0,0.0022254]
[1643783802192,0.065162,38371.0,38367.0,0.28875242]
[1643783802593,0.065162,38371.0,38367.0,0.28865242]
[1643783802794,0.065162,38371.0,38367.0,0.28855242]
[1643783803196,0.065162,38371.0,38367.0,0.28835242]
[1643783803395,0.3326503,38369.0,38363.0,0.43901878]
[1643783803651,0.31946422,38368.0,38363.0,0.0020254]
[1643783803951,0.130347,38367.0,38364.0,0.0011442]
[1643783804148,0.130347,38367.0,38366.0,0.33009203]
[1643783804349,0.59402081,38367.0,38366.0,0.32999203]
[1643783804547,0.59402081,38367.0,38366.0,0.32989203]
[1643783804750,0.59402081,38367.0,38366.0,0.32979203]
[1643783804948,0.59402081,38367.0,38366.0,0.32969203]
[1643783805250,0.59402081,38367.0,38366.0,0.32959203]
[1643783805449,0.59402081,38367.0,38363.0,0.0019254]
[1643783805450,0.34015712,38367.0,38363.0,0.0018254]
[1643783805849,0.34015712,38367.0,38363.0,0.0016254]
[1643783806149,0.34015712,38367.0,38363.0,0.0015254]
[1643783806551,0.23654009,38366.0,38363.0,0.0014254]
[1643783806749,0.23654009,38366.0,38361.0,0.01]
[1643783806950,0.23654009,38366.0,38361.0,0.0099]
[1643783807391,0.23654009,38366.0,38365.0,0.38506072]
[1643783807593,0.34015712,38367.0,38361.0,0.0098]
[1643783807791,0.34015712,38367.0,38361.0,0.0097]
[1643783808192,0.34015712,38367.0,38361.0,0.0096]
[1643783808392,0.34015712,38367.0,38361.0,0.0095]
[1643783808592,0.2916042,38365.0,38361.0,0.0095]
[1643783808893,0.35901791,38363.0,38362.0,0.00114376]
[1643783809195,0.13034933,38364.0,38362.0,0.00104376]
[1643783809494,0.13034933,38364.0,38362.0,0.00084376]
[1643783809694,0.13034933,38364.0,38362.0,0.00064376]
[1643783809892,0.13034933,38364.0,38361.0,0.0094]
[1643783809893,0.13034933,38364.0,38361.0,0.0093]
[1643783810293,0.13034933,38364.0,38361.0,0.0092]
[1643783810694,0.13034933,38364.0,38361.0,0.0091]
[1643783810893,0.13034933,38364.0,38361.0,0.009]
[1643783811147,0.13034933,38364.0,38361.0,0.0089]
[1643783811446,0.57374691,38367.0,38361.0,0.0087]
[1643783811646,0.34491365,38367.0,38361.0,0.0087]
[1643783811850,0.34491365,38367.0,38361.0,0.0086]
[1643783812046,0.13034933,38364.0,38361.0,0.0085]
[1643783812247,0.13034933,38364.0,38361.0,0.0084]
[1643783812447,0.13034933,38364.0,38361.0,0.0083]
[1643783812646,0.13034933,38364.0,38361.0,0.0082]
[1643783812846,0.13034933,38364.0,38361.0,0.0081]
[1643783813046,0.13034933,38364.0,38361.0,0.0079]
[1643783813247,0.13034933,38364.0,38361.0,0.0078]
[1643783813647,0.13034933,38364.0,38361.0,0.0077]
[1643783813846,0.13034933,38364.0,38361.0,0.0076]
[1643783814046,0.13034933,38364.0,38363.0,0.32992332]
[1643783814248,0.13034933,38364.0,38361.0,0.0076]
[1643783814449,0.13034933,38364.0,38361.0,0.0075]
[1643783814649,0.13034933,38364.0,38361.0,0.39241558]
[1643783814903,0.13034933,38364.0,38361.0,0.39221558]
[1643783815102,0.13034933,38364.0,38362.0,0.38501558]
[1643783815305,0.13034933,38364.0,38361.0,0.39211558]
[1643783815702,0.13034933,38364.0,38361.0,0.39191558]
[1643783815901,0.13034933,38364.0,38361.0,0.39181558]
[1643783816102,0.13034933,38364.0,38361.0,0.38681558]
[1643783816302,0.13034933,38364.0,38361.0,0.0018]
[1643783816503,0.13034933,38364.0,38361.0,0.0017]
[1643783820544,0.13034933,38364.0,38361.0,0.0016]
[1643783821146,0.12534933,38364.0,38361.0,0.0016]
[1643783821947,0.12534933,38364.0,38362.0,0.5249121]
[1643783822400,0.12534933,38364.0,38362.0,0.385028]
[1643783822593,0.12534933,38364.0,38363.0,0.33003342]
[1643783823198,0.17534933,38364.0,38363.0,0.33003342]
[1643783823394,0.17534933,38364.0,38361.0,0.0016]
[1643783823994,0.30637251,38362.0,38361.0,0.0016]
[1643783824193,0.37931651,38362.0,38361.0,0.0016]
[1643783824395,0.42931651,38362.0,38361.0,0.0016]
[1643783825395,0.68539975,38362.0,38361.0,0.0016]
[1643783826644,0.68539975,38362.0,38361.0,0.0015]
[1643783826842,0.63539975,38362.0,38361.0,0.0015]
[1643783827043,0.63539975,38362.0,38361.0,0.0014]
[1643783827445,0.63539975,38362.0,38361.0,0.0013]
[1643783827649,0.63539975,38362.0,38361.0,0.0012]
[1643783828046,0.37931651,38362.0,38361.0,0.0012]
[1643783828343,0.60284326,38362.0,38361.0,0.0012]
[1643783828545,0.37931651,38362.0,38361.0,0.0012]
[1643783829146,0.60271933,38362.0,38361.0,0.0012]
[1643783829446,0.37931651,38362.0,38361.0,0.0012]
[1643783830395,0.61010757,38362.0,38361.0,0.0011]
[1643783830596,0.60981441,38362.0,38361.0,0.0011]
[1643783830797,0.60981441,38362.0,38361.0,0.001]
[1643783831213,0.60981441,38362.0,38361.0,0.0009]
[1643783831398,0.60981441,38362.0,38361.0,0.0008]
[1643783831599,0.60981441,38362.0,38361.0,0.0007]
[1643783831798,0.65981441,38362.0,38361.0,0.0007]
[1643783832200,0.94248886,38362.0,38361.0,0.0007]
[1643783832399,0.6917036,38362.0,38361.0,0.0007]
[1643783833000,0.92958568,38362.0,38361.0,0.0007]
[1643783833214,0.6917036,38362.0,38361.0,0.0007]
[1643783834149,0.7938036,38362.0,38361.0,0.0007]
[1643783834348,1.1954509,38362.0,38361.0,0.0007]
[1643783834654,0.9438036,38362.0,38361.0,0.0007]
[1643783836150,1.1954509,38362.0,38361.0,0.0007]
[1643783836551,0.9438036,38362.0,38361.0,0.0007]
[1643783836750,0.9438036,38362.0,38360.0,0.00057066]
[1643783836950,0.20124772,38355.0,38354.0,0.002283]
[1643783837151,0.32346087,38355.0,38354.0,0.002283]
[1643783837396,0.37346087,38355.0,38351.0,0.01]
[1643783837794,0.37346087,38355.0,38351.0,0.3400497]
[1643783837795,0.32346087,38355.0,38351.0,0.3400497]
[1643783838594,0.2931325,38354.0,38351.0,0.3400497]
[1643783838794,0.2931325,38354.0,38351.0,0.01]
[1643783839194,0.065196,38354.0,38351.0,0.01]
[1643783839594,0.11729718,38353.0,38351.0,0.01]
[1643783840196,0.32272456,38353.0,38351.0,0.01]
[1643783841741,0.11729718,38353.0,38351.0,0.01]
[1643783842140,0.11729718,38353.0,38351.0,0.0099]
[1643783842540,0.11729718,38353.0,38351.0,0.0098]
[1643783842741,0.36876042,38353.0,38351.0,0.0097]
[1643783842940,0.36876042,38353.0,38351.0,0.0096]
[1643783843341,0.11729718,38353.0,38351.0,0.0096]
[1643783845096,0.06519718,38353.0,38351.0,0.0096]
[1643783845700,0.06519718,38353.0,38352.0,0.3300497]
[1643783847694,0.06519718,38353.0,38351.0,0.2765202]
[1643783847897,0.065196,38354.0,38352.0,0.350669]
[1643783848097,0.2516473,38362.0,38352.0,0.73572699]
[1643783848399,0.0182773,38358.0,38355.0,0.32992463]
[1643783848854,0.0182773,38358.0,38354.0,0.32992463]
[1643783849054,0.0182773,38358.0,38355.0,0.32992463]
[1643783849355,0.0182773,38358.0,38357.0,0.42850605]
[1643783849654,0.0182773,38358.0,38357.0,0.22850605]
[1643783850255,0.0182773,38358.0,38357.0,0.52850605]
[1643783850957,0.0182773,38358.0,38357.0,0.22850605]
[1643783851154,0.0182773,38358.0,38356.0,0.33106323]
[1643783851356,0.0182773,38358.0,38356.0,0.0011386]
[1643783851755,0.13036473,38359.0,38356.0,0.0011386]
[1643783851955,0.13036473,38359.0,38355.0,0.32992463]
[1643783852155,0.13037466,38358.0,38355.0,0.00113861]
[1643783852396,0.39917544,38361.0,38355.0,0.00113861]
[1643783852793,0.44917544,38361.0,38355.0,0.00113861]
[1643783852993,0.065187,38358.0,38354.0,0.32992463]
[1643783853195,0.06518502,38357.0,38356.0,0.00113858]
[1643783853397,0.065187,38358.0,38356.0,0.00113858]
[1643783854194,0.065187,38358.0,38356.0,0.32992463]
[1643783854595,0.065187,38358.0,38357.0,0.24765626]
[1643783856543,0.065187,38358.0,38357.0,0.57758089]
[1643783857144,0.06518082,38360.0,38357.0,0.57758089]
[1643783857343,0.01984941,38363.0,38358.0,0.68059363]
[1643783857542,0.01984941,38363.0,38359.0,0.32992463]
[1643783857743,0.06517498,38364.0,38359.0,0.32992463]
[1643783858545,0.06517075,38365.0,38359.0,0.32992463]
[1643783859246,0.31268941,38365.0,38360.0,0.32992463]
[1643783859647,0.06517075,38365.0,38360.0,0.32992463]
[1643783860098,0.065171,38364.0,38360.0,0.32992463]
[1643783860900,0.065171,38364.0,38361.0,0.32992463]
[1643783861304,0.32282518,38364.0,38361.0,0.32992463]
[1643783861501,0.06491044,38364.0,38361.0,0.32992463]
[1643783862301,0.06491044,38364.0,38363.0,0.25638083]
[1643783862502,0.31407212,38364.0,38361.0,0.32992463]
[1643783862901,0.06491044,38364.0,38361.0,0.32992463]
[1643783863302,0.06491044,38364.0,38360.0,0.32992463]
[1643783863549,0.53129295,38364.0,38361.0,0.32992463]
[1643783863750,0.30166641,38364.0,38359.0,0.32992463]
[1643783863953,0.30166641,38364.0,38358.0,0.32992463]
[1643783864150,0.29021642,38361.0,38358.0,0.33106315]
[1643783864551,0.29021642,38361.0,38359.0,0.32992463]
[1643783864751,0.31083802,38360.0,38359.0,0.32992463]
[1643783866355,0.065179,38361.0,38359.0,0.32992463]
[1643783866558,0.065179,38361.0,38360.0,0.32992463]
[1643783867396,0.065179,38361.0,38358.0,0.38505799]
[1643783867596,0.065179,38361.0,38358.0,0.38619651]
[1643783868695,0.065179,38361.0,38358.0,0.38505799]
[1643783868896,0.065179,38361.0,38358.0,0.38619653]
[1643783869198,0.065179,38361.0,38360.0,0.33011248]
[1643783869396,0.065179,38361.0,38358.0,0.38619653]
[1643783869595,0.065179,38361.0,38360.0,0.33011588]
[1643783869799,0.065179,38361.0,38359.0,0.88081514]
[1643783870097,0.065179,38361.0,38359.0,0.38505799]
[1643783870296,0.065179,38361.0,38360.0,0.33011272]
[1643783870498,0.065179,38361.0,38360.0,0.33010971]
[1643783870798,0.065179,38361.0,38359.0,0.38505799]
[1643783871043,0.065179,38361.0,38359.0,0.88081052]
[1643783871247,0.065179,38361.0,38360.0,0.33011511]
[1643783871848,0.06517762,38363.0,38360.0,0.33011511]
[1643783872247,0.33272262,38365.0,38361.0,0.45]
[1643783872448,0.56495299,38365.0,38361.0,0.74006615]
[1643783873246,0.54505651,38365.0,38361.0,0.29006615]
[1643783873447,0.06517311,38364.0,38361.0,0.29006615]
[1643783874049,0.06517311,38364.0,38355.0,0.38515644]
[1643783874050,0.1,38362.0,38355.0,0.38515644]
[1643783874251,0.05,38359.0,38358.0,0.33013409]
[1643783874454,0.70905363,38359.0,38350.0,0.0011]
[1643783874650,0.451819,38359.0,38350.0,0.0011]
[1643783874911,0.30044864,38354.0,38350.0,0.0011]
[1643783875111,0.36564464,38354.0,38350.0,0.0011]
[1643783875608,0.349719,38353.0,38350.0,0.0011]
[1643783875809,0.36564464,38354.0,38350.0,0.0011]
[1643783876208,0.349719,38353.0,38350.0,0.0011]
[1643783876408,0.414916,38353.0,38350.0,0.0011]
[1643783876610,0.13039277,38354.0,38350.0,0.0011]
[1643783877015,0.19558977,38354.0,38347.0,0.10123663]
[1643783877212,0.19558977,38354.0,38350.0,0.00056796]
[1643783877412,0.73058332,38353.0,38350.0,0.00056796]
[1643783878014,0.21884135,38351.0,38350.0,0.00056796]
[1643783878213,0.28403738,38351.0,38348.0,0.09629207]
[1643783878415,0.57711309,38351.0,38349.0,0.00113311]
[1643783879558,0.57711309,38351.0,38347.0,0.0015]
[1643783879755,0.06519917,38347.0,38342.0,0.62041537]
[1643783879955,0.06519917,38347.0,38343.0,0.39797266]
[1643783880154,0.005,38346.0,38343.0,0.39797266]
[1643783880356,0.005,38346.0,38342.0,0.62041537]
[1643783880756,0.005,38346.0,38342.0,0.61588219]
[1643783880757,0.28277053,38345.0,38342.0,0.61588219]
[1643783880957,0.28777053,38345.0,38342.0,0.61588219]
[1643783881356,0.005,38345.0,38342.0,0.61588219]
[1643783881956,0.005,38345.0,38343.0,0.33007139]
[1643783882159,0.005,38345.0,38344.0,0.33007139]
[1643783882398,0.005,38345.0,38343.0,0.33007139]
[1643783882598,0.005,38345.0,38344.0,0.33007139]
[1643783882995,0.005,38345.0,38343.0,0.33007139]
[1643783883197,0.005,38345.0,38343.0,0.00112762]
[1643783883495,0.005,38345.0,38343.0,0.33119901]
[1643783883695,0.005,38345.0,38343.0,0.00112762]
[1643783884096,0.00163185,38345.0,38343.0,0.33119901]
[1643783884295,0.00163185,38345.0,38343.0,0.33007139]
[1643783885096,0.00163185,38345.0,38344.0,0.68074039]
[1643783885796,0.00163185,38345.0,38344.0,0.33007139]
[1643783886051,0.00163185,38345.0,38344.0,0.91265709]
[1643783888653,0.01920084,38350.0,38344.0,0.5825857]
[1643783888854,0.27920897,38350.0,38345.0,0.3299539]
[1643783889254,0.065197,38349.0,38346.0,0.00112753]
[1643783890304,0.13039604,38349.0,38344.0,0.3299539]
[1643783890501,0.13039604,38349.0,38342.0,0.61588219]
[1643783890502,0.13039604,38349.0,38346.0,0.00112753]
[1643783890701,0.065197,38349.0,38346.0,0.00112753]
[1643783891505,0.065197,38349.0,38343.0,0.24748764]
[1643783891701,0.065197,38349.0,38346.0,0.00112753]
[1643783892305,0.2825861,38350.0,38347.0,0.4]
[1643783892507,0.130399,38351.0,38347.0,0.4]
[1643783892904,0.06519766,38350.0,38347.0,0.4]
[1643783893103,0.065197,38349.0,38347.0,0.4]
[1643783893949,0.29132385,38349.0,38347.0,0.4]
[1643783894150,0.065197,38349.0,38347.0,0.4]
[1643783894748,0.065197,38349.0,38346.0,0.00112752]
[1643783895151,0.065197,38349.0,38343.0,0.24748764]
[1643783895152,0.26788777,38348.0,38343.0,0.24748764]
[1643783895348,0.065197,38349.0,38346.0,0.00112753]
[1643783896349,0.41460802,38349.0,38343.0,0.24748764]
[1643783896550,0.41460802,38349.0,38346.0,0.00112753]
[1643783897407,0.41460802,38349.0,38343.0,0.24748764]
[1643783897605,0.41460802,38349.0,38346.0,0.00112753]
[1643783899810,0.41460802,38349.0,38343.0,0.24748764]
[1643783900007,0.41460802,38349.0,38346.0,0.00112753]
[1643783901048,0.13039588,38349.0,38343.0,0.57744154]
[1643783901249,0.13039588,38349.0,38346.0,0.00112753]
[1643783902250,0.13039588,38349.0,38343.0,0.57744154]
[1643783902452,0.13039588,38349.0,38346.0,0.00112753]
[1643783902850,0.065197,38349.0,38346.0,0.00112753]
[1643783903451,0.065197,38349.0,38344.0,0.3299539]